[Event "Final GP Rapid TOP 16 2019"]
[Site "Khanty-Mansijsk"]
[Date "2019.12.01"]
[Round "1.1"]
[White "Potapov, Pavel"]
[Black "Ponkratov, Pavel"]
[Result "1/2-1/2"]
[ECO "B09"]
[WhiteElo "2482"]
[BlackElo "2632"]
[Annotator "ChessBase"]
[PlyCount "104"]
[EventDate "2019.12.01"]
[EventType "tourn"]
[EventCountry "RUS"]
[SourceTitle "playchess.com"]
[Source "ChessBase"]
[SourceQuality "1"]
[TimeControl "900+10"]

1. e4 {[%emt 0:00:00]} d6 {[%emt 0:00:00]} 2. d4 {[%emt 0:00:00]} Nf6 {[%emt 0:00:00]} 3. Nc3 {[%emt 0:00:00]} g6 {[%emt 0:00:00]} 4. f4 {[%emt 0:00:11]} Bg7 {[%emt 0:00:00]} 5. Nf3 {[%emt 0:00:04]} O-O {[%emt 0:00:00]} 6. Be2 {[%emt 0:00:24]} c5 {[%emt 0:00:00]} 7. dxc5 {[%emt 0:00:03]} Qa5 {[%emt 0:00:01]} 8. O-O {[%emt 0:00:17]} Qxc5+ {[%emt 0:00:02]} 9. Kh1 {[%emt 0:00:02]} Nc6 {[%emt 0:00:07]} 10. Bd3 {[%emt 0:00:26]} Nb4 {[%emt 0:00:02]} 11. Qe1 {[%emt 0:00:30]} b6 {[%emt 0:00:02]} 12. Be3 {[%emt 0:01:22]} Qh5 {[%emt 0:00:03]} 13. a3 {[%emt 0:01:30]} Nxd3 {[%emt 0:00:02]} 14. cxd3 {[%emt 0:00:02]} Ba6 {[%emt 0:00:23]} 15. Rd1 {[%emt 0:00:21]} Rac8 {[%emt 0:01:01]} 16. h3 {[%emt 0:01:38]} Rfd8 {[%emt 0:01:32]} 17. Qg3 {[%emt 0:00:36]} e6 {[%emt 0:00:39]} 18. Bd4 {[%emt 0:02:35]} Qh6 {[%emt 0:00:22]} 19. Bxf6 {[%emt 0:02:09]} Bxf6 {[%emt 0:00:04]} 20. e5 {[%emt 0:00:03]} dxe5 {[%emt 0:00:36]} 21. fxe5 {[%emt 0:00:34]} Be7 {[%emt 0:00:02]} 22. Nh2 {[%emt 0:00:03]} Qg5 {[%emt 0:04:10]} 23. Qf2 {[%emt 0:02:09]} Qf5 {[%emt 0:00:32]} 24. Qe1 {[%emt 0:00:05]} Qh5 {[%emt 0:00:16]} 25. Qf2 {[%emt 0:00:09]} Rf8 {[%emt 0:01:26]} 26. Ng4 {[%emt 0:00:18]} Bb7 {[%emt 0:00:14]} 27. Ne4 {[%emt 0:00:47]} Kg7 {[%emt 0:00:23]} 28. Qg3 {[%emt 0:00:38]} Bxe4 {[%emt 0:02:09]} 29. dxe4 {[%emt 0:00:02]} Qg5 {[%emt 0:00:01]} 30. Qf2 {[%emt 0:00:51]} Rc7 {[%emt 0:02:59]} 31. Nf6 {[%emt 0:00:56]} Bxf6 {[%emt 0:01:30]} 32. exf6+ {[%emt 0:00:02]} Kg8 {[%emt 0:00:02]} 33. Rd3 {[%emt 0:00:44]} e5 {[%emt 0:00:50]} 34. Qd2 {[%emt 0:00:27]} Qxd2 {[%emt 0:00:25]} 35. Rxd2 {[%emt 0:00:02]} h5 {[%emt 0:00:03]} 36. Rd5 {[%emt 0:00:17]} Re8 {[%emt 0:00:06]} 37. Rf2 {[%emt 0:00:19]} h4 {[%emt 0:00:15]} 38. Kh2 {[%emt 0:00:02]} Kh7 {[%emt 0:00:07]} 39. g3 {[%emt 0:00:09]} hxg3+ {[%emt 0:00:05]} 40. Kxg3 {[%emt 0:00:01]} Kh6 {[%emt 0:00:18]} 41. Kg4 {[%emt 0:00:23]} Rc4 {[%emt 0:00:21]} 42. Rd7 {[%emt 0:00:18]} Rxe4+ {[%emt 0:00:08]} 43. Kg3 {[%emt 0:00:15]} Rf8 {[%emt 0:00:12]} 44. Rxa7 {[%emt 0:00:03]} b5 {[%emt 0:00:26]} 45. Rb7 {[%emt 0:00:03]} b4 {[%emt 0:00:02]} 46. axb4 {[%emt 0:00:17]} g5 {[%emt 0:00:01]} 47. b5 {[%emt 0:00:11]} Kg6 {[%emt 0:00:02]} 48. b6 {[%emt 0:00:08]} Rb4 {[%emt 0:00:06]} 49. Re7 {[%emt 0:00:09]} e4 {[%emt 0:00:28]} 50. Re2 {[%emt 0:00:15]} Rb8 {[%emt 0:00:13]} 51. R7xe4 {[%emt 0:00:08]} R4xb6 {[%emt 0:00:07]} 52. h4 {[%emt 0:00:06]} Rxb2 {[%emt 0:00:10]} 1/2-1/2

[Event "Final GP Rapid TOP 16 2019"]
[Site "Khanty-Mansijsk"]
[Date "2019.12.01"]
[Round "1.2"]
[White "Shimanov, Aleksandr"]
[Black "Morozevich, Alexander"]
[Result "0-1"]
[ECO "D11"]
[WhiteElo "2587"]
[BlackElo "2659"]
[Annotator "ChessBase"]
[PlyCount "94"]
[EventDate "2019.12.01"]
[EventType "tourn"]
[EventCountry "RUS"]
[SourceTitle "playchess.com"]
[Source "ChessBase"]
[SourceQuality "1"]
[TimeControl "900+10"]

1. Nf3 {[%emt 0:00:00]} d5 {[%emt 0:00:00]} 2. e3 {[%emt 0:00:00]} Nf6 {[%emt 0:00:07]} 3. c4 {[%emt 0:00:00]} c6 {[%emt 0:00:02]} 4. d4 {[%emt 0:00:05]} a6 {[%emt 0:00:11]} 5. Bd3 {[%emt 0:00:31]} Bg4 {[%emt 0:00:04]} 6. Nbd2 {[%emt 0:00:26]} e6 {[%emt 0:00:03]} 7. b3 {[%emt 0:00:27]} c5 {[%emt 0:01:35]} 8. cxd5 {[%emt 0:00:56]} Nxd5 {[%emt 0:00:39]} 9. h3 {[%emt 0:05:20]} Bh5 {[%emt 0:00:13]} 10. g4 {[%emt 0:00:09]} Bg6 {[%emt 0:00:02]} 11. Bxg6 {[%emt 0:00:03]} hxg6 {[%emt 0:00:02]} 12. Bb2 {[%emt 0:00:02]} cxd4 {[%emt 0:01:16]} 13. Nxd4 {[%emt 0:00:02]} Nd7 {[%emt 0:00:07]} 14. Kf1 {[%emt 0:00:25]} Be7 {[%emt 0:03:37]} 15. Kg2 {[%emt 0:00:05]} O-O {[%emt 0:00:03]} 16. h4 {[%emt 0:01:00]} Nc5 {[%emt 0:00:32]} 17. N2f3 {[%emt 0:01:15]} Qd6 {[%emt 0:01:24]} 18. Ne2 {[%emt 0:01:10]} Rad8 {[%emt 0:01:05]} 19. Ng3 {[%emt 0:00:33]} e5 {[%emt 0:03:54]} 20. Nxe5 {[%emt 0:03:10]} Bf6 {[%emt 0:00:43]} 21. b4 {[%emt 0:02:29]} Bxe5 {[%emt 0:00:22]} 22. Bxe5 {[%emt 0:00:18]} Qxe5 {[%emt 0:00:09]} 23. bxc5 {[%emt 0:00:03]} Nxe3+ {[%emt 0:00:13]} 24. fxe3 {[%emt 0:00:01]} Rxd1 {[%emt 0:00:08]} 25. Rhxd1 {[%emt 0:00:01]} Qxe3 {[%emt 0:00:34]} 26. Rd5 {[%emt 0:00:22]} Qe6 {[%emt 0:00:44]} 27. Rd4 {[%emt 0:00:13]} Qc6+ {[%emt 0:00:08]} 28. Kh3 {[%emt 0:00:05]} Qxc5 {[%emt 0:00:04]} 29. Rd7 {[%emt 0:00:06]} f5 {[%emt 0:00:30]} 30. gxf5 {[%emt 0:00:25]} gxf5 {[%emt 0:00:03]} 31. Re1 {[%emt 0:00:02]} f4 {[%emt 0:00:32]} 32. Ree7 {[%emt 0:00:24]} Qc3 {[%emt 0:00:02]} 33. Rxg7+ {[%emt 0:00:11]} Qxg7 {[%emt 0:00:02]} 34. Rxg7+ {[%emt 0:00:02]} Kxg7 {[%emt 0:00:01]} 35. Ne4 {[%emt 0:00:01]} b5 {[%emt 0:00:50]} 36. Nc5 {[%emt 0:00:03]} Kg6 {[%emt 0:00:12]} 37. Kg2 {[%emt 0:00:06]} a5 {[%emt 0:00:07]} 38. Ne6 {[%emt 0:00:14]} Rc8 {[%emt 0:00:14]} 39. Kf3 {[%emt 0:00:10]} b4 {[%emt 0:00:21]} 40. Nxf4+ {[%emt 0:00:13]} Kh6 {[%emt 0:00:18]} 41. Ke3 {[%emt 0:00:21]} Rc2 {[%emt 0:00:01]} 42. Kd3 {[%emt 0:00:03]} Rxa2 {[%emt 0:00:01]} 43. Kc4 {[%emt 0:00:03]} Rc2+ {[%emt 0:00:09]} 44. Kb3 {[%emt 0:00:02]} Rc3+ {[%emt 0:00:01]} 45. Ka4 {[%emt 0:00:02]} Ra3+ {[%emt 0:00:01]} 46. Kb5 {[%emt 0:00:01]} b3 {[%emt 0:00:06]} 47. Nd3 {[%emt 0:00:02]} b2 {[%emt 0:00:02]} 0-1

[Event "Final GP Rapid TOP 16 2019"]
[Site "Khanty-Mansijsk"]
[Date "2019.12.01"]
[Round "1.3"]
[White "Tsydypov, Zhamsaran"]
[Black "Bocharov, Dmitry"]
[Result "1-0"]
[ECO "B80"]
[WhiteElo "2553"]
[BlackElo "2524"]
[Annotator "ChessBase"]
[PlyCount "93"]
[EventDate "2019.12.01"]
[EventType "tourn"]
[EventCountry "RUS"]
[SourceTitle "playchess.com"]
[Source "ChessBase"]
[SourceQuality "1"]
[TimeControl "900+10"]

1. e4 {[%emt 0:00:00]} c5 {[%emt 0:04:43]} 2. Nf3 {[%emt 0:00:00]} e6 {[%emt 0:00:02]} 3. d4 {[%emt 0:00:37]} cxd4 {[%emt 0:00:01]} 4. Nxd4 {[%emt 0:00:01]} Nc6 {[%emt 0:00:02]} 5. Nc3 {[%emt 0:00:11]} Qc7 {[%emt 0:00:02]} 6. g3 {[%emt 0:01:20]} a6 {[%emt 0:00:21]} 7. Bg2 {[%emt 0:00:05]} Nf6 {[%emt 0:00:06]} 8. O-O {[%emt 0:00:04]} d6 {[%emt 0:00:25]} 9. Re1 {[%emt 0:00:22]} Bd7 {[%emt 0:01:05]} 10. Be3 {[%emt 0:03:16]} Be7 {[%emt 0:00:09]} 11. f4 {[%emt 0:00:04]} O-O {[%emt 0:00:17]} 12. Bf2 {[%emt 0:00:25]} b5 {[%emt 0:01:19]} 13. a3 {[%emt 0:01:01]} Rac8 {[%emt 0:00:38]} 14. h3 {[%emt 0:00:25]} Rfd8 {[%emt 0:00:21]} 15. Nb3 {[%emt 0:00:56]} Be8 {[%emt 0:01:26]} 16. Qe2 {[%emt 0:00:11]} Nd7 {[%emt 0:00:16]} 17. Nd5 {[%emt 0:00:27]} exd5 {[%emt 0:00:40]} 18. exd5 {[%emt 0:00:02]} Nce5 {[%emt 0:00:03]} 19. fxe5 {[%emt 0:00:11]} dxe5 {[%emt 0:01:54]} 20. Nd4 {[%emt 0:00:11]} Bd6 {[%emt 0:01:36]} 21. Nc6 {[%emt 0:00:07]} Nf6 {[%emt 0:00:04]} 22. Nxd8 {[%emt 0:00:10]} Qxd8 {[%emt 0:00:12]} 23. Rac1 {[%emt 0:00:20]} Rc4 {[%emt 0:00:18]} 24. b3 {[%emt 0:00:11]} Rc3 {[%emt 0:00:06]} 25. Qd2 {[%emt 0:00:05]} Qc8 {[%emt 0:00:28]} 26. Re3 {[%emt 0:00:02]} Rc7 {[%emt 0:00:20]} 27. c4 {[%emt 0:00:29]} Bxa3 {[%emt 0:00:28]} 28. Rc2 {[%emt 0:00:59]} Bd6 {[%emt 0:00:36]} 29. Qc1 {[%emt 0:00:27]} Bd7 {[%emt 0:00:24]} 30. g4 {[%emt 0:00:29]} h5 {[%emt 0:00:06]} 31. g5 {[%emt 0:00:06]} Nh7 {[%emt 0:00:02]} 32. c5 {[%emt 0:02:02]} Bxc5 {[%emt 0:00:39]} 33. Rec3 {[%emt 0:00:04]} Bxf2+ {[%emt 0:00:02]} 34. Kxf2 {[%emt 0:00:01]} Rxc3 {[%emt 0:00:03]} 35. Rxc3 {[%emt 0:00:01]} Qd8 {[%emt 0:00:14]} 36. Rc7 {[%emt 0:00:35]} Nf8 {[%emt 0:00:13]} 37. h4 {[%emt 0:00:22]} e4 {[%emt 0:00:26]} 38. Qc5 {[%emt 0:02:32]} e3+ {[%emt 0:00:01]} 39. Ke2 {[%emt 0:00:48]} Ng6 {[%emt 0:00:29]} 40. Be4 {[%emt 0:00:14]} Bg4+ {[%emt 0:00:09]} 41. Kxe3 {[%emt 0:00:04]} Nxh4 {[%emt 0:00:01]} 42. Qe7 {[%emt 0:00:26]} Qxe7 {[%emt 0:00:34]} 43. Rxe7 {[%emt 0:00:01]} Kf8 {[%emt 0:00:04]} 44. d6 {[%emt 0:00:01]} f6 {[%emt 0:00:03]} 45. g6 {[%emt 0:00:16]} f5 {[%emt 0:00:03]} 46. Rf7+ {[%emt 0:00:03]} Kg8 {[%emt 0:00:01]} 47. d7 {[%emt 0:00:04]} 1-0

[Event "Final GP Rapid TOP 16 2019"]
[Site "Khanty-Mansijsk"]
[Date "2019.12.01"]
[Round "1.4"]
[White "Murzin, Volodar"]
[Black "Golubov, Saveliy"]
[Result "0-1"]
[ECO "B07"]
[WhiteElo "2442"]
[BlackElo "2469"]
[Annotator "ChessBase"]
[PlyCount "78"]
[EventDate "2019.12.01"]
[EventType "tourn"]
[EventCountry "RUS"]
[SourceTitle "playchess.com"]
[Source "ChessBase"]
[SourceQuality "1"]
[TimeControl "900+10"]

1. e4 {[%emt 0:00:00]} g6 {[%emt 0:00:00]} 2. Nf3 {[%emt 0:00:18]} Bg7 {[%emt 0:00:00]} 3. d4 {[%emt 0:00:04]} d6 {[%emt 0:00:03]} 4. Bc4 {[%emt 0:00:13]} Nf6 {[%emt 0:00:24]} 5. Qe2 {[%emt 0:00:03]} O-O {[%emt 0:00:38]} 6. Nbd2 {[%emt 0:00:28]} Nc6 {[%emt 0:01:42]} 7. c3 {[%emt 0:01:26]} e5 {[%emt 0:00:17]} 8. dxe5 {[%emt 0:00:16]} Nxe5 {[%emt 0:00:47]} 9. Nxe5 {[%emt 0:00:13]} dxe5 {[%emt 0:00:02]} 10. O-O {[%emt 0:00:11]} Qe7 {[%emt 0:02:07]} 11. a4 {[%emt 0:02:01]} Be6 {[%emt 0:00:23]} 12. Nf3 {[%emt 0:01:10]} Rfe8 {[%emt 0:03:03]} 13. Bg5 {[%emt 0:02:40]} h6 {[%emt 0:02:15]} 14. Bxf6 {[%emt 0:01:22]} Qxf6 {[%emt 0:00:02]} 15. Bxe6 {[%emt 0:00:27]} Qxe6 {[%emt 0:00:22]} 16. Rfd1 {[%emt 0:00:37]} Red8 {[%emt 0:00:58]} 17. Ne1 {[%emt 0:01:48]} Rd7 {[%emt 0:01:11]} 18. Rxd7 {[%emt 0:00:54]} Qxd7 {[%emt 0:00:01]} 19. Qd3 {[%emt 0:00:05]} Qe7 {[%emt 0:01:59]} 20. Rd1 {[%emt 0:00:12]} Bf6 {[%emt 0:00:22]} 21. Qd7 {[%emt 0:00:54]} Qc5 {[%emt 0:00:50]} 22. Qb5 {[%emt 0:00:51]} Qb6 {[%emt 0:00:44]} 23. Nc2 {[%emt 0:00:46]} c6 {[%emt 0:00:10]} 24. Qxb6 {[%emt 0:00:02]} axb6 {[%emt 0:00:01]} 25. b3 {[%emt 0:00:03]} Kf8 {[%emt 0:00:22]} 26. Kf1 {[%emt 0:00:05]} Be7 {[%emt 0:00:10]} 27. Ke2 {[%emt 0:00:08]} Ke8 {[%emt 0:00:04]} 28. Ne3 {[%emt 0:00:05]} f6 {[%emt 0:00:28]} 29. Rd2 {[%emt 0:00:19]} Ra6 {[%emt 0:00:12]} 30. g4 {[%emt 0:00:32]} Bc5 {[%emt 0:00:06]} 31. Nc2 {[%emt 0:00:11]} Ke7 {[%emt 0:00:10]} 32. h4 {[%emt 0:00:06]} Ra8 {[%emt 0:00:12]} 33. Ne1 {[%emt 0:00:08]} h5 {[%emt 0:00:11]} 34. gxh5 {[%emt 0:00:29]} gxh5 {[%emt 0:00:01]} 35. Rd3 {[%emt 0:00:01]} Ke6 {[%emt 0:00:11]} 36. Rg3 {[%emt 0:00:03]} b5 {[%emt 0:00:05]} 37. Nd3 {[%emt 0:00:06]} Be7 {[%emt 0:00:14]} 38. axb5 {[%emt 0:00:05]} cxb5 {[%emt 0:00:01]} 39. Rg8 {[%emt 0:00:07]} Rxg8 {[%emt 0:00:12]} 0-1

[Event "Final GP Rapid TOP 16 2019"]
[Site "Khanty-Mansijsk"]
[Date "2019.12.01"]
[Round "1.5"]
[White "Maltsevskaya, Aleksandra"]
[Black "Sakaev, Konstantin"]
[Result "0-1"]
[ECO "B90"]
[WhiteElo "2318"]
[BlackElo "2596"]
[Annotator "ChessBase"]
[PlyCount "66"]
[EventDate "2019.12.01"]
[EventType "tourn"]
[EventCountry "RUS"]
[SourceTitle "playchess.com"]
[Source "ChessBase"]
[SourceQuality "1"]
[TimeControl "900+10"]

1. e4 {[%emt 0:00:00]} c5 {[%emt 0:00:00]} 2. Nf3 {[%emt 0:00:00]} d6 {[%emt 0:00:00]} 3. d4 {[%emt 0:00:00]} cxd4 {[%emt 0:00:00]} 4. Nxd4 {[%emt 0:00:02]} Nf6 {[%emt 0:00:00]} 5. Nc3 {[%emt 0:00:09]} a6 {[%emt 0:00:00]} 6. h3 {[%emt 0:00:38]} e5 {[%emt 0:00:02]} 7. Nde2 {[%emt 0:00:03]} h5 {[%emt 0:00:01]} 8. Bg5 {[%emt 0:00:13]} Be6 {[%emt 0:00:04]} 9. g3 {[%emt 0:00:22]} Be7 {[%emt 0:00:03]} 10. Bg2 {[%emt 0:00:02]} b5 {[%emt 0:00:04]} 11. O-O {[%emt 0:01:07]} Nbd7 {[%emt 0:00:09]} 12. a4 {[%emt 0:02:36]} b4 {[%emt 0:00:42]} 13. Nd5 {[%emt 0:00:02]} Bxd5 {[%emt 0:02:53]} 14. exd5 {[%emt 0:00:03]} O-O {[%emt 0:01:11]} 15. c3 {[%emt 0:00:56]} Rb8 {[%emt 0:01:45]} 16. Bxf6 {[%emt 0:01:03]} Bxf6 {[%emt 0:00:30]} 17. a5 {[%emt 0:06:13]} Nc5 {[%emt 0:01:23]} 18. Nc1 {[%emt 0:00:31]} bxc3 {[%emt 0:01:10]} 19. bxc3 {[%emt 0:00:02]} e4 {[%emt 0:01:49]} 20. Qxh5 {[%emt 0:01:27]} Bxc3 {[%emt 0:01:06]} 21. Ra2 {[%emt 0:00:03]} Bxa5 {[%emt 0:00:43]} 22. Ne2 {[%emt 0:00:15]} Rb4 {[%emt 0:00:43]} 23. Rd1 {[%emt 0:01:16]} Bb6 {[%emt 0:01:53]} 24. Nd4 {[%emt 0:00:41]} Qf6 {[%emt 0:00:02]} 25. Nc6 {[%emt 0:00:30]} Rb3 {[%emt 0:00:02]} 26. g4 {[%emt 0:00:40]} g6 {[%emt 0:00:44]} 27. Qh6 {[%emt 0:00:02]} Re8 {[%emt 0:00:15]} 28. Re2 {[%emt 0:00:06]} a5 {[%emt 0:00:36]} 29. Nd4 {[%emt 0:00:27]} Rd3 {[%emt 0:01:04]} 30. Rxd3 {[%emt 0:00:17]} Nxd3 {[%emt 0:00:01]} 31. Bxe4 {[%emt 0:00:11]} Nf4 {[%emt 0:00:39]} 32. Re1 {[%emt 0:00:12]} Bxd4 {[%emt 0:00:09]} 33. Kh1 {[%emt 0:00:08]} Bxf2 {[%emt 0:00:17]} 0-1

[Event "Final GP Rapid TOP 16 2019"]
[Site "Khanty-Mansijsk"]
[Date "2019.12.01"]
[Round "1.6"]
[White "Voit, Daria"]
[Black "Moiseenko, Vadim"]
[Result "0-1"]
[ECO "A57"]
[WhiteElo "2336"]
[BlackElo "2526"]
[Annotator "ChessBase"]
[PlyCount "164"]
[EventDate "2019.12.01"]
[EventType "tourn"]
[EventCountry "RUS"]
[SourceTitle "playchess.com"]
[Source "ChessBase"]
[SourceQuality "1"]
[TimeControl "900+10"]

1. d4 {[%emt 0:00:00]} Nf6 {[%emt 0:00:00]} 2. c4 {[%emt 0:00:00]} c5 {[%emt 0:00:00]} 3. d5 {[%emt 0:00:00]} b5 {[%emt 0:00:00]} 4. Qc2 {[%emt 0:00:39]} Na6 {[%emt 0:00:05]} 5. a3 {[%emt 0:01:27]} bxc4 {[%emt 0:01:06]} 6. e4 {[%emt 0:00:09]} g6 {[%emt 0:00:11]} 7. Nf3 {[%emt 0:00:14]} Bg7 {[%emt 0:00:05]} 8. Bxc4 {[%emt 0:00:11]} O-O {[%emt 0:00:11]} 9. O-O {[%emt 0:00:07]} d6 {[%emt 0:00:02]} 10. Nc3 {[%emt 0:00:22]} Nc7 {[%emt 0:00:14]} 11. h3 {[%emt 0:02:16]} Nd7 {[%emt 0:00:25]} 12. Bf4 {[%emt 0:02:27]} Nb6 {[%emt 0:00:02]} 13. Be2 {[%emt 0:00:51]} Ba6 {[%emt 0:03:13]} 14. Rad1 {[%emt 0:00:45]} Rb8 {[%emt 0:00:09]} 15. Bxa6 {[%emt 0:00:27]} Nxa6 {[%emt 0:00:02]} 16. Qe2 {[%emt 0:00:02]} Nc7 {[%emt 0:02:15]} 17. e5 {[%emt 0:00:44]} Qd7 {[%emt 0:00:02]} 18. Rfe1 {[%emt 0:00:05]} Rbd8 {[%emt 0:03:54]} 19. Qc2 {[%emt 0:04:45]} Nb5 {[%emt 0:04:02]} 20. Ne4 {[%emt 0:00:34]} Qf5 {[%emt 0:01:16]} 21. Bg3 {[%emt 0:00:05]} Nd4 {[%emt 0:00:31]} 22. Nxd4 {[%emt 0:01:04]} cxd4 {[%emt 0:00:01]} 23. exd6 {[%emt 0:00:13]} exd6 {[%emt 0:00:22]} 24. Qc6 {[%emt 0:00:04]} Qxd5 {[%emt 0:00:11]} 25. Qxd5 {[%emt 0:00:10]} Nxd5 {[%emt 0:00:01]} 26. Nxd6 {[%emt 0:00:04]} Rd7 {[%emt 0:00:12]} 27. Rd3 {[%emt 0:00:35]} Nc7 {[%emt 0:00:24]} 28. Nc4 {[%emt 0:00:15]} Ne6 {[%emt 0:00:02]} 29. Ne5 {[%emt 0:00:29]} Rb7 {[%emt 0:00:15]} 30. b4 {[%emt 0:00:03]} Rc8 {[%emt 0:00:09]} 31. Kf1 {[%emt 0:00:11]} Rb5 {[%emt 0:00:18]} 32. Nf3 {[%emt 0:00:36]} a5 {[%emt 0:00:21]} 33. bxa5 {[%emt 0:00:00]} Rxa5 {[%emt 0:00:02]} 34. Bd6 {[%emt 0:00:18]} Rd5 {[%emt 0:00:23]} 35. Bb4 {[%emt 0:00:09]} Nf4 {[%emt 0:00:05]} 36. Rdd1 {[%emt 0:00:06]} Bf6 {[%emt 0:00:04]} 37. Re4 {[%emt 0:00:07]} Ne6 {[%emt 0:00:02]} 38. g3 {[%emt 0:00:17]} Kg7 {[%emt 0:00:08]} 39. Rd3 {[%emt 0:00:04]} h5 {[%emt 0:00:11]} 40. h4 {[%emt 0:00:07]} Rc2 {[%emt 0:00:07]} 41. Re2 {[%emt 0:00:02]} Rc6 {[%emt 0:00:07]} 42. Nd2 {[%emt 0:00:23]} Nc7 {[%emt 0:00:28]} 43. Ne4 {[%emt 0:00:08]} Bd8 {[%emt 0:00:15]} 44. Red2 {[%emt 0:00:13]} Rc4 {[%emt 0:00:04]} 45. Rd1 {[%emt 0:00:23]} Nb5 {[%emt 0:00:10]} 46. Nd2 {[%emt 0:00:15]} Rc2 {[%emt 0:00:01]} 47. Nf3 {[%emt 0:00:05]} Bb6 {[%emt 0:00:10]} 48. R1d2 {[%emt 0:00:14]} Rc4 {[%emt 0:00:09]} 49. Rd1 {[%emt 0:00:07]} Ba7 {[%emt 0:00:18]} 50. R1d2 {[%emt 0:00:03]} Rf5 {[%emt 0:00:13]} 51. Kg2 {[%emt 0:00:09]} Rd5 {[%emt 0:00:09]} 52. Rd1 {[%emt 0:00:04]} Nc7 {[%emt 0:00:21]} 53. Nd2 {[%emt 0:00:14]} Rc2 {[%emt 0:00:02]} 54. Nf3 {[%emt 0:00:14]} Ne6 {[%emt 0:00:15]} 55. R1d2 {[%emt 0:00:01]} Rc6 {[%emt 0:00:08]} 56. Rd1 {[%emt 0:00:04]} Bb6 {[%emt 0:00:09]} 57. Kf1 {[%emt 0:00:10]} f6 {[%emt 0:00:02]} 58. Ke2 {[%emt 0:00:15]} g5 {[%emt 0:00:05]} 59. hxg5 {[%emt 0:00:27]} fxg5 {[%emt 0:00:02]} 60. Rh1 {[%emt 0:00:01]} Kg6 {[%emt 0:00:04]} 61. Nd2 {[%emt 0:00:07]} Rf5 {[%emt 0:00:29]} 62. Rf3 {[%emt 0:00:08]} Re5+ {[%emt 0:00:13]} 63. Kd3 {[%emt 0:00:03]} g4 {[%emt 0:00:21]} 64. Rf4 {[%emt 0:00:36]} Nxf4+ {[%emt 0:00:02]} 65. gxf4 {[%emt 0:00:02]} Rf5 {[%emt 0:00:02]} 66. Nc4 {[%emt 0:00:03]} Bc7 {[%emt 0:00:22]} 67. Bd2 {[%emt 0:00:10]} Kf6 {[%emt 0:00:14]} 68. a4 {[%emt 0:00:22]} Bxf4 {[%emt 0:00:08]} 69. Bxf4 {[%emt 0:00:11]} Rxf4 {[%emt 0:00:01]} 70. Nd2 {[%emt 0:00:03]} Rc3+ {[%emt 0:00:09]} 71. Ke2 {[%emt 0:00:02]} Kg6 {[%emt 0:00:16]} 72. Ra1 {[%emt 0:00:10]} Rc7 {[%emt 0:00:11]} 73. a5 {[%emt 0:00:01]} Re7+ {[%emt 0:00:06]} 74. Kd3 {[%emt 0:00:10]} Rxf2 {[%emt 0:00:05]} 75. a6 {[%emt 0:00:01]} Rff7 {[%emt 0:00:04]} 76. Kxd4 {[%emt 0:00:37]} h4 {[%emt 0:00:05]} 77. Nf1 {[%emt 0:00:16]} g3 {[%emt 0:00:15]} 78. Ne3 {[%emt 0:00:10]} h3 {[%emt 0:00:06]} 79. Nd5 {[%emt 0:00:11]} Rd7 {[%emt 0:00:27]} 80. Ra3 {[%emt 0:00:02]} g2 {[%emt 0:00:13]} 81. Rg3+ {[%emt 0:00:03]} Kf5 {[%emt 0:00:11]} 82. a7 {[%emt 0:00:27]} Rxa7 {[%emt 0:00:05]} 0-1

[Event "Final GP Rapid TOP 16 2019"]
[Site "Khanty-Mansijsk"]
[Date "2019.12.01"]
[Round "1.7"]
[White "Nesterov, Arseniy"]
[Black "Kokarev, Dmitry"]
[Result "0-1"]
[ECO "E73"]
[WhiteElo "2482"]
[BlackElo "2606"]
[Annotator "ChessBase"]
[PlyCount "70"]
[EventDate "2019.12.01"]
[EventType "tourn"]
[EventCountry "RUS"]
[SourceTitle "playchess.com"]
[Source "ChessBase"]
[SourceQuality "1"]
[TimeControl "900+10"]

1. d4 {[%emt 0:00:00]} g6 {[%emt 0:00:00]} 2. c4 {[%emt 0:00:00]} Bg7 {[%emt 0:00:00]} 3. e4 {[%emt 0:00:09]} d6 {[%emt 0:00:00]} 4. Nc3 {[%emt 0:00:16]} Nf6 {[%emt 0:00:00]} 5. Be2 {[%emt 0:00:14]} O-O {[%emt 0:00:02]} 6. Be3 {[%emt 0:00:02]} Na6 {[%emt 0:00:04]} 7. h4 {[%emt 0:00:03]} c5 {[%emt 0:01:04]} 8. d5 {[%emt 0:00:13]} e6 {[%emt 0:00:02]} 9. dxe6 {[%emt 0:00:11]} Bxe6 {[%emt 0:00:03]} 10. h5 {[%emt 0:00:30]} Qb6 {[%emt 0:01:33]} 11. Qd2 {[%emt 0:03:05]} Qb4 {[%emt 0:00:07]} 12. Rh4 {[%emt 0:03:16]} Rfe8 {[%emt 0:01:45]} 13. O-O-O {[%emt 0:02:56]} Qa5 {[%emt 0:01:04]} 14. hxg6 {[%emt 0:00:46]} fxg6 {[%emt 0:00:02]} 15. Nf3 {[%emt 0:01:45]} Nb4 {[%emt 0:02:12]} 16. a3 {[%emt 0:00:29]} Nc6 {[%emt 0:00:25]} 17. Rdh1 {[%emt 0:01:57]} Rad8 {[%emt 0:00:59]} 18. Bh6 {[%emt 0:00:30]} Bh8 {[%emt 0:00:18]} 19. Bg5 {[%emt 0:00:06]} Nd4 {[%emt 0:01:00]} 20. Nxd4 {[%emt 0:00:12]} cxd4 {[%emt 0:00:01]} 21. Qxd4 {[%emt 0:00:17]} Qxg5+ {[%emt 0:00:02]} 22. f4 {[%emt 0:00:05]} Qc5 {[%emt 0:00:17]} 23. Qxc5 {[%emt 0:00:19]} dxc5 {[%emt 0:00:02]} 24. e5 {[%emt 0:00:01]} h5 {[%emt 0:01:57]} 25. exf6 {[%emt 0:00:35]} Bxf6 {[%emt 0:00:01]} 26. R4h2 {[%emt 0:00:08]} Bf5 {[%emt 0:01:15]} 27. g4 {[%emt 0:01:03]} hxg4 {[%emt 0:00:14]} 28. Nd5 {[%emt 0:00:02]} Bd4 {[%emt 0:00:10]} 29. Rg2 {[%emt 0:00:15]} Be4 {[%emt 0:00:10]} 30. Rhh2 {[%emt 0:00:01]} Bxg2 {[%emt 0:00:20]} 31. Rxg2 {[%emt 0:00:01]} g3 {[%emt 0:00:19]} 32. Bd3 {[%emt 0:00:05]} Re1+ {[%emt 0:00:02]} 33. Kc2 {[%emt 0:00:29]} Rg1 {[%emt 0:00:20]} 34. Rxg1 {[%emt 0:00:01]} Bxg1 {[%emt 0:00:02]} 35. Bxg6 {[%emt 0:00:03]} Bd4 {[%emt 0:00:07]} 0-1